[Event "Early-Titled-Tuesday-Blitz-May-07-2024"]
[Site "Chess.com"]
[Date "2024.05.07"]
[Round "2"]
[White "ccccvhhhj"]
[Black "jamengrand"]
[Result "1-0"]
[WhiteElo "2475"]
[BlackElo "2177"]
[TimeControl "180+1"]
[EndTime "8:20:09 PDT"]
[Termination "ccccvhhhj won on time"]

1. e4 {[%clk 0:03:00.9]} 1... e5 {[%clk 0:02:59.4]} 2. Nf3 {[%clk 0:03:01.2]}
2... Nc6 {[%clk 0:02:59.1]} 3. d4 {[%clk 0:03:01.5]} 3... exd4 {[%clk
0:02:58.2]} 4. Nxd4 {[%clk 0:03:02.4]} 4... Nf6 {[%clk 0:02:58.3]} 5. Bb5 {[%clk
0:03:01.8]} 5... Bc5 {[%clk 0:02:52.1]} 6. Nb3 {[%clk 0:03:01.6]} 6... Be7
{[%clk 0:02:49.2]} 7. Nc3 {[%clk 0:02:59.7]} 7... O-O {[%clk 0:02:47.8]} 8. Be3
{[%clk 0:02:55.7]} 8... d6 {[%clk 0:02:46.6]} 9. O-O {[%clk 0:02:52.2]} 9... Ng4
{[%clk 0:02:44.8]} 10. Bf4 {[%clk 0:02:51.4]} 10... Nge5 {[%clk 0:02:39.7]} 11.
Be2 {[%clk 0:02:48.8]} 11... f5 {[%clk 0:02:32]} 12. exf5 {[%clk 0:02:44.9]}
12... Bxf5 {[%clk 0:02:31.6]} 13. Bg3 {[%clk 0:02:45.8]} 13... Bh4 {[%clk
0:02:20.6]} 14. Nd4 {[%clk 0:02:37.3]} 14... Nxd4 {[%clk 0:02:16.6]} 15. Qxd4
{[%clk 0:02:37.1]} 15... Bxg3 {[%clk 0:02:14.4]} 16. hxg3 {[%clk 0:02:38]} 16...
Bxc2 {[%clk 0:02:13.3]} 17. Nd5 {[%clk 0:02:18]} 17... c6 {[%clk 0:02:07.2]} 18.
Nf4 {[%clk 0:02:15.7]} 18... Bf5 {[%clk 0:02:04.2]} 19. Rad1 {[%clk 0:02:14.8]}
19... Nf7 {[%clk 0:01:59]} 20. Bd3 {[%clk 0:02:10.9]} 20... Bc8 {[%clk
0:01:52.2]} 21. Bb1 {[%clk 0:02:03.3]} 21... d5 {[%clk 0:01:50.7]} 22. Qd3
{[%clk 0:02:00.8]} 22... Ng5 {[%clk 0:01:50.7]} 23. Qb3 {[%clk 0:01:49.2]} 23...
Qb6 {[%clk 0:01:46.5]} 24. Qc3 {[%clk 0:01:45.1]} 24... Bg4 {[%clk 0:01:45]} 25.
Rde1 {[%clk 0:01:32.9]} 25... Rae8 {[%clk 0:01:43.3]} 26. Re5 {[%clk 0:01:26.4]}
26... Nf7 {[%clk 0:01:17.2]} 27. Ree1 {[%clk 0:01:08]} 27... Nd6 {[%clk
0:01:09.6]} 28. b3 {[%clk 0:00:34.7]} 28... a5 {[%clk 0:01:05.7]} 29. Qd3 {[%clk
0:00:23.6]} 29... Bf5 {[%clk 0:00:56.4]} 30. Qd1 {[%clk 0:00:23.6]} 30... Be4
{[%clk 0:00:52.3]} 31. Qg4 {[%clk 0:00:18.4]} 31... Qc7 {[%clk 0:00:29.1]} 32.
f3 {[%clk 0:00:14.1]} 32... Bf5 {[%clk 0:00:22.5]} 33. Bxf5 {[%clk 0:00:13]}
33... Rxe1 {[%clk 0:00:20.2]} 34. Bxh7+ {[%clk 0:00:11.9]} 34... Kxh7 {[%clk
0:00:15.8]} 35. Rxe1 {[%clk 0:00:11.9]} 1-0

[Event "Early-Titled-Tuesday-Blitz-May-07-2024"]
[Site "Chess.com"]
[Date "2024.05.07"]
[Round "2"]
[White "KnightDuta"]
[Black "kecalk"]
[Result "1-0"]
[WhiteElo "2744"]
[BlackElo "2537"]
[TimeControl "180+1"]
[EndTime "8:20:10 PDT"]
[Termination "KnightDuta won by resignation"]

1. e4 {[%clk 0:03:00.9]} 1... c5 {[%clk 0:02:59.7]} 2. Nf3 {[%clk 0:03:00.8]}
2... Nc6 {[%clk 0:02:59.7]} 3. d4 {[%clk 0:03:00.9]} 3... cxd4 {[%clk
0:02:59.7]} 4. Nxd4 {[%clk 0:03:01.8]} 4... Nf6 {[%clk 0:02:59.5]} 5. Nc3 {[%clk
0:03:02]} 5... e5 {[%clk 0:02:59.5]} 6. Ndb5 {[%clk 0:03:02.1]} 6... d6 {[%clk
0:02:59.7]} 7. Bg5 {[%clk 0:03:02.7]} 7... a6 {[%clk 0:02:59.7]} 8. Na3 {[%clk
0:03:03.5]} 8... b5 {[%clk 0:03:00]} 9. Nd5 {[%clk 0:03:04.2]} 9... Be7 {[%clk
0:02:59.6]} 10. Bxf6 {[%clk 0:03:04.8]} 10... Bxf6 {[%clk 0:03:00.1]} 11. c3
{[%clk 0:03:05.5]} 11... Rb8 {[%clk 0:02:54.7]} 12. Nc2 {[%clk 0:03:05.1]} 12...
Bg5 {[%clk 0:02:53.6]} 13. a4 {[%clk 0:03:04.8]} 13... bxa4 {[%clk 0:02:53.9]}
14. Ncb4 {[%clk 0:03:05.5]} 14... Nxb4 {[%clk 0:02:54.1]} 15. cxb4 {[%clk
0:03:06.4]} 15... O-O {[%clk 0:02:51.9]} 16. Rxa4 {[%clk 0:03:05.9]} 16... a5
{[%clk 0:02:52.4]} 17. h4 {[%clk 0:03:04.9]} 17... Bh6 {[%clk 0:02:50.9]} 18. b5
{[%clk 0:03:03.5]} 18... Bd7 {[%clk 0:02:50]} 19. Nc3 {[%clk 0:03:04]} 19... d5
{[%clk 0:02:49.9]} 20. exd5 {[%clk 0:03:04.9]} 20... f5 {[%clk 0:02:49.8]} 21.
d6 {[%clk 0:03:02.1]} 21... Be6 {[%clk 0:02:33.8]} 22. Bc4 {[%clk 0:02:43.5]}
22... Rf6 {[%clk 0:02:03.9]} 23. d7 {[%clk 0:02:04.4]} 23... Bxc4 {[%clk
0:01:55.3]} 24. Rxc4 {[%clk 0:02:05.3]} 24... Rf7 {[%clk 0:01:55.9]} 25. Qd6
{[%clk 0:01:18.7]} 25... Rxd7 {[%clk 0:01:46.5]} 26. Qe6+ {[%clk 0:01:17.9]}
26... Rf7 {[%clk 0:01:32.2]} 27. O-O {[%clk 0:01:18.8]} 27... Qe7 {[%clk
0:01:30.2]} 28. Rc8+ {[%clk 0:00:46.1]} 28... Rxc8 {[%clk 0:01:28.3]} 29. Qxc8+
{[%clk 0:00:47]} 29... Rf8 {[%clk 0:01:24.7]} 30. Qc4+ {[%clk 0:00:47.3]} 30...
Kh8 {[%clk 0:01:24.7]} 31. b6 {[%clk 0:00:46.1]} 31... e4 {[%clk 0:01:24.5]} 32.
Nd5 {[%clk 0:00:41.3]} 32... Qb7 {[%clk 0:00:47.5]} 33. Rd1 {[%clk 0:00:32.9]}
33... Rc8 {[%clk 0:00:36.8]} 34. Ne7 {[%clk 0:00:31.3]} 34... Rb8 {[%clk
0:00:23.4]} 35. Qc7 {[%clk 0:00:31.2]} 35... g5 {[%clk 0:00:19.7]} 36. Rd8+
{[%clk 0:00:25.1]} 36... Rxd8 {[%clk 0:00:19.8]} 37. Qxb7 {[%clk 0:00:21.9]}
37... gxh4 {[%clk 0:00:19.8]} 38. Nd5 {[%clk 0:00:16.8]} 38... h3 {[%clk
0:00:16.6]} 39. gxh3 {[%clk 0:00:16.8]} 39... f4 {[%clk 0:00:15.4]} 40. Qc6
{[%clk 0:00:16.3]} 40... Bg7 {[%clk 0:00:14.5]} 41. b7 {[%clk 0:00:16.6]} 41...
Be5 {[%clk 0:00:15]} 42. Qe6 {[%clk 0:00:15.9]} 1-0

[Event "Early-Titled-Tuesday-Blitz-May-07-2024"]
[Site "Chess.com"]
[Date "2024.05.07"]
[Round "2"]
[White "The_Machine04"]
[Black "GrotBchess"]
[Result "0-1"]
[WhiteElo "2763"]
[BlackElo "2471"]
[TimeControl "180+1"]
[EndTime "8:20:10 PDT"]
[Termination "GrotBchess won by checkmate"]

1. d4 {[%clk 0:03:00.9]} 1... Nf6 {[%clk 0:02:59.8]} 2. Nf3 {[%clk 0:03:01.4]}
2... e6 {[%clk 0:03:00.3]} 3. Nbd2 {[%clk 0:03:01.8]} 3... d5 {[%clk 0:03:00.3]}
4. e3 {[%clk 0:03:02.3]} 4... c5 {[%clk 0:02:59.6]} 5. c3 {[%clk 0:03:02.4]}
5... Bd6 {[%clk 0:02:56.8]} 6. Bd3 {[%clk 0:03:02.2]} 6... Qc7 {[%clk
0:02:56.8]} 7. O-O {[%clk 0:03:02.6]} 7... Nbd7 {[%clk 0:02:57.2]} 8. e4 {[%clk
0:03:02.6]} 8... dxe4 {[%clk 0:02:56.5]} 9. Nxe4 {[%clk 0:03:03.5]} 9... Nxe4
{[%clk 0:02:56.6]} 10. Bxe4 {[%clk 0:03:04.4]} 10... Nf6 {[%clk 0:02:56.8]} 11.
Bc2 {[%clk 0:03:04.8]} 11... b6 {[%clk 0:02:55.4]} 12. Bg5 {[%clk 0:03:02.3]}
12... Bb7 {[%clk 0:02:51.3]} 13. h3 {[%clk 0:03:02]} 13... Be7 {[%clk
0:02:49.7]} 14. dxc5 {[%clk 0:02:57.2]} 14... Qxc5 {[%clk 0:02:47.2]} 15. Be3
{[%clk 0:02:53]} 15... Qc7 {[%clk 0:02:45.4]} 16. Ba4+ {[%clk 0:02:52.6]} 16...
Bc6 {[%clk 0:02:45.6]} 17. Bf4 {[%clk 0:02:50.2]} 17... Qb7 {[%clk 0:02:40.5]}
18. Ne5 {[%clk 0:02:50.1]} 18... Bxa4 {[%clk 0:02:39.7]} 19. Qxa4+ {[%clk
0:02:51]} 19... b5 {[%clk 0:02:39.8]} 20. Qb3 {[%clk 0:02:46.7]} 20... O-O
{[%clk 0:02:33.1]} 21. a4 {[%clk 0:02:46.9]} 21... b4 {[%clk 0:02:26.5]} 22. c4
{[%clk 0:02:44.9]} 22... a5 {[%clk 0:02:22.2]} 23. Qf3 {[%clk 0:02:41.8]} 23...
Qxf3 {[%clk 0:02:19.2]} 24. Nxf3 {[%clk 0:02:42.7]} 24... Rfd8 {[%clk
0:02:17.8]} 25. Rfd1 {[%clk 0:02:42.6]} 25... Rac8 {[%clk 0:02:13.5]} 26. b3
{[%clk 0:02:42.6]} 26... Ne4 {[%clk 0:02:13.5]} 27. Be3 {[%clk 0:02:41.7]} 27...
Bf6 {[%clk 0:02:09.8]} 28. Rac1 {[%clk 0:02:35.1]} 28... Nc3 {[%clk 0:02:05.3]}
29. Rxd8+ {[%clk 0:02:35.2]} 29... Rxd8 {[%clk 0:02:05.4]} 30. Kf1 {[%clk
0:02:35.9]} 30... g6 {[%clk 0:01:57.7]} 31. g4 {[%clk 0:02:35.9]} 31... Kf8
{[%clk 0:01:55.7]} 32. Bb6 {[%clk 0:02:35.1]} 32... Ra8 {[%clk 0:01:55.5]} 33.
Rc2 {[%clk 0:02:32.3]} 33... Ke7 {[%clk 0:01:48.3]} 34. Rd2 {[%clk 0:02:31.6]}
34... Ne4 {[%clk 0:01:45.5]} 35. Rd3 {[%clk 0:02:31.6]} 35... Ke8 {[%clk
0:01:33.5]} 36. Nd2 {[%clk 0:02:22.2]} 36... Nc3 {[%clk 0:01:26.7]} 37. Nf3
{[%clk 0:02:19.3]} 37... Ne4 {[%clk 0:01:24.8]} 38. Ke2 {[%clk 0:02:06.5]} 38...
Nc3+ {[%clk 0:01:21.3]} 39. Ke3 {[%clk 0:02:05.7]} 39... Ra6 {[%clk 0:01:21.1]}
40. c5 {[%clk 0:02:03.7]} 40... Nd5+ {[%clk 0:01:19.1]} 41. Ke4 {[%clk
0:01:53.5]} 41... Nxb6 {[%clk 0:01:16]} 42. Rd6 {[%clk 0:01:52.4]} 42... Bd8
{[%clk 0:01:07.9]} 43. Nd4 {[%clk 0:01:31.1]} 43... Nd7 {[%clk 0:01:04.5]} 44.
Rxa6 {[%clk 0:01:06.3]} 44... Nxc5+ {[%clk 0:01:04.1]} 45. Ke5 {[%clk
0:01:06.8]} 45... Nxa6 {[%clk 0:01:03.3]} 46. Kd6 {[%clk 0:01:07.7]} 46... Be7+
{[%clk 0:00:58.1]} 47. Kc6 {[%clk 0:01:06.8]} 47... Nc5 {[%clk 0:00:54.6]} 48.
Kb5 {[%clk 0:01:06.8]} 48... e5 {[%clk 0:00:52.9]} 49. Nc6 {[%clk 0:01:01]}
49... Nxb3 {[%clk 0:00:52.1]} 50. Nxe5 {[%clk 0:01:01.2]} 50... Nd4+ {[%clk
0:00:43.4]} 51. Kxa5 {[%clk 0:01:01]} 51... b3 {[%clk 0:00:42.8]} 52. Nd3 {[%clk
0:00:59.1]} 52... Ba3 {[%clk 0:00:42.7]} 53. Kb6 {[%clk 0:00:57.5]} 53... b2
{[%clk 0:00:37.4]} 54. Nxb2 {[%clk 0:00:57.8]} 54... Bxb2 {[%clk 0:00:37.9]} 55.
a5 {[%clk 0:00:58.7]} 55... Ne6 {[%clk 0:00:37.6]} 56. a6 {[%clk 0:00:58.7]}
56... Bd4+ {[%clk 0:00:37.5]} 57. Kc6 {[%clk 0:00:55.1]} 57... Bxf2 {[%clk
0:00:37.7]} 58. Kd5 {[%clk 0:00:54.5]} 58... Ke7 {[%clk 0:00:37.8]} 59. Ke5
{[%clk 0:00:54.9]} 59... h5 {[%clk 0:00:36.9]} 60. gxh5 {[%clk 0:00:55.1]} 60...
gxh5 {[%clk 0:00:37.8]} 61. Kf5 {[%clk 0:00:55.8]} 61... h4 {[%clk 0:00:38]} 62.
Kg4 {[%clk 0:00:55.6]} 62... Kf6 {[%clk 0:00:38]} 63. Kh5 {[%clk 0:00:55.3]}
63... Ke5 {[%clk 0:00:37]} 64. Kg4 {[%clk 0:00:55.1]} 64... f5+ {[%clk
0:00:37.1]} 65. Kh5 {[%clk 0:00:53.6]} 65... f4 {[%clk 0:00:34.7]} 66. Kg4
{[%clk 0:00:53.5]} 66... Ke4 {[%clk 0:00:33.2]} 67. a7 {[%clk 0:00:52.9]} 67...
Bxa7 {[%clk 0:00:32.2]} 68. Kxh4 {[%clk 0:00:53.8]} 68... f3 {[%clk 0:00:31.6]}
69. Kg3 {[%clk 0:00:54.7]} 69... f2 {[%clk 0:00:26.6]} 70. Kg2 {[%clk
0:00:55.6]} 70... Nf4+ {[%clk 0:00:26.6]} 71. Kf1 {[%clk 0:00:56.4]} 71... Kf3
{[%clk 0:00:26.5]} 72. h4 {[%clk 0:00:57.3]} 72... Ne2 {[%clk 0:00:26.6]} 73. h5
{[%clk 0:00:58.1]} 73... Ng3# {[%clk 0:00:27.2]} 0-1

[Event "Early-Titled-Tuesday-Blitz-May-07-2024"]
[Site "Chess.com"]
[Date "2024.05.07"]
[Round "2"]
[White "Sjakkerntobi"]
[Black "Louis-Paulsen-Fan"]
[Result "1/2-1/2"]
[WhiteElo "2534"]
[BlackElo "2352"]
[TimeControl "180+1"]
[EndTime "8:20:10 PDT"]
[Termination "Game drawn by repetition"]

1. e4 {[%clk 0:03:00.9]} 1... Nf6 {[%clk 0:02:59.7]} 2. e5 {[%clk 0:03:01]} 2...
Nd5 {[%clk 0:03:00]} 3. Nc3 {[%clk 0:03:01.7]} 3... Nxc3 {[%clk 0:02:59.8]} 4.
dxc3 {[%clk 0:03:02.6]} 4... d6 {[%clk 0:03:00.3]} 5. Nf3 {[%clk 0:03:02.7]}
5... Nc6 {[%clk 0:02:59.1]} 6. Bf4 {[%clk 0:03:02.3]} 6... dxe5 {[%clk
0:02:56.7]} 7. Qxd8+ {[%clk 0:03:03.2]} 7... Nxd8 {[%clk 0:02:55.9]} 8. Nxe5
{[%clk 0:02:59.6]} 8... f6 {[%clk 0:02:54.5]} 9. Nf3 {[%clk 0:02:59.5]} 9... e5
{[%clk 0:02:54.7]} 10. Be3 {[%clk 0:03:00.2]} 10... Be6 {[%clk 0:02:52.8]} 11.
O-O-O {[%clk 0:02:46.2]} 11... Be7 {[%clk 0:02:34.1]} 12. Be2 {[%clk 0:02:09.4]}
12... Nf7 {[%clk 0:02:34]} 13. h4 {[%clk 0:01:37.4]} 13... Nd6 {[%clk
0:02:32.7]} 14. h5 {[%clk 0:01:32.3]} 14... Nc4 {[%clk 0:02:20.7]} 15. Bxc4
{[%clk 0:01:24.7]} 15... Bxc4 {[%clk 0:02:21.6]} 16. Nd2 {[%clk 0:01:06.9]}
16... Bd5 {[%clk 0:02:15]} 17. c4 {[%clk 0:01:03.4]} 17... Bc6 {[%clk
0:02:10.6]} 18. f3 {[%clk 0:00:59.6]} 18... Kf7 {[%clk 0:02:09.4]} 19. Nb3
{[%clk 0:00:49.2]} 19... b6 {[%clk 0:02:01.1]} 20. Nd2 {[%clk 0:00:33.8]} 20...
Rad8 {[%clk 0:01:59.9]} 21. Ne4 {[%clk 0:00:33.7]} 21... h6 {[%clk 0:01:46]} 22.
Nc3 {[%clk 0:00:29.5]} 22... Ke6 {[%clk 0:01:43.2]} 23. Rd3 {[%clk 0:00:23.8]}
23... Rxd3 {[%clk 0:01:26.9]} 24. cxd3 {[%clk 0:00:24.7]} 24... Rd8 {[%clk
0:01:26.9]} 25. Rd1 {[%clk 0:00:24.3]} 25... f5 {[%clk 0:01:22.5]} 26. d4 {[%clk
0:00:20.7]} 26... exd4 {[%clk 0:01:18.2]} 27. Bxd4 {[%clk 0:00:21.6]} 27... Bf6
{[%clk 0:01:14.3]} 28. Be3 {[%clk 0:00:20.9]} 28... Rxd1+ {[%clk 0:01:11.8]} 29.
Nxd1 {[%clk 0:00:21.8]} 29... Be8 {[%clk 0:01:08.5]} 30. g4 {[%clk 0:00:21.7]}
30... fxg4 {[%clk 0:01:08.7]} 31. fxg4 {[%clk 0:00:22.6]} 31... Bg5 {[%clk
0:01:03.3]} 32. Kd2 {[%clk 0:00:22.4]} 32... Ke5 {[%clk 0:01:03.5]} 33. Nf2
{[%clk 0:00:22]} 33... Bd7 {[%clk 0:01:01.1]} 34. Bxg5 {[%clk 0:00:20.6]} 34...
hxg5 {[%clk 0:01:00.9]} 35. Ke3 {[%clk 0:00:21.5]} 35... Be6 {[%clk 0:00:59.3]}
36. b3 {[%clk 0:00:21.3]} 36... c5 {[%clk 0:00:50.5]} 37. Nd3+ {[%clk
0:00:21.4]} 37... Kf6 {[%clk 0:00:43.9]} 38. Kf3 {[%clk 0:00:19.8]} 38... Bd7
{[%clk 0:00:41.3]} 39. Nf2 {[%clk 0:00:14.6]} 39... Bc6+ {[%clk 0:00:40.9]} 40.
Ke3 {[%clk 0:00:15.2]} 40... Ke5 {[%clk 0:00:37.9]} 41. Nd3+ {[%clk 0:00:15.3]}
41... Kf6 {[%clk 0:00:38.3]} 42. a3 {[%clk 0:00:16]} 42... a5 {[%clk 0:00:36.9]}
43. Nf2 {[%clk 0:00:11.5]} 43... Ke5 {[%clk 0:00:35.9]} 44. Nd3+ {[%clk
0:00:11.5]} 44... Kf6 {[%clk 0:00:36.3]} 45. Nf2 {[%clk 0:00:12.2]} 45... Ke5
{[%clk 0:00:36.6]} 46. Nh3 {[%clk 0:00:13]} 46... Kf6 {[%clk 0:00:36.3]} 47. Ng1
{[%clk 0:00:13.3]} 47... Bd7 {[%clk 0:00:33.8]} 48. Kf3 {[%clk 0:00:12.7]} 48...
Ke5 {[%clk 0:00:27.1]} 49. Ne2 {[%clk 0:00:13]} 49... Bc6+ {[%clk 0:00:25.6]}
50. Ke3 {[%clk 0:00:13.1]} 50... Bd7 {[%clk 0:00:26]} 51. Kf3 {[%clk 0:00:13.2]}
51... Bc6+ {[%clk 0:00:26.4]} 52. Ke3 {[%clk 0:00:13.8]} 52... Bd7 {[%clk
0:00:26.7]} 53. Kf3 {[%clk 0:00:14.5]} 1/2-1/2

[Event "Early-Titled-Tuesday-Blitz-May-07-2024"]
[Site "Chess.com"]
[Date "2024.05.07"]
[Round "2"]
[White "CarlosjPineror"]
[Black "Daaksboy"]
[Result "1/2-1/2"]
[WhiteElo "2721"]
[BlackElo "2475"]
[TimeControl "180+1"]
[EndTime "8:20:11 PDT"]
[Termination "Game drawn by repetition"]

1. e4 {[%clk 0:03:00.9]} 1... c5 {[%clk 0:02:57.6]} 2. Ne2 {[%clk 0:02:59.7]}
2... g6 {[%clk 0:02:55.1]} 3. g3 {[%clk 0:02:59.8]} 3... Bg7 {[%clk 0:02:55.1]}
4. Bg2 {[%clk 0:03:00.5]} 4... Nc6 {[%clk 0:02:55.2]} 5. O-O {[%clk 0:03:01]}
5... e6 {[%clk 0:02:55.1]} 6. c3 {[%clk 0:02:59.6]} 6... d5 {[%clk 0:02:52.9]}
7. exd5 {[%clk 0:02:59.3]} 7... exd5 {[%clk 0:02:52.6]} 8. d4 {[%clk 0:03:00.2]}
8... cxd4 {[%clk 0:02:51.7]} 9. Nxd4 {[%clk 0:03:00.4]} 9... Nxd4 {[%clk
0:02:51.1]} 10. cxd4 {[%clk 0:03:00.7]} 10... Ne7 {[%clk 0:02:50.1]} 11. Nc3
{[%clk 0:03:01.6]} 11... O-O {[%clk 0:02:50.1]} 12. Bg5 {[%clk 0:03:01.4]} 12...
Be6 {[%clk 0:02:47.9]} 13. Re1 {[%clk 0:02:48.3]} 13... Re8 {[%clk 0:02:46.1]}
14. Qb3 {[%clk 0:02:26.4]} 14... Bxd4 {[%clk 0:02:19.3]} 15. Rad1 {[%clk
0:00:48.3]} 15... Bb6 {[%clk 0:01:54.3]} 16. Ne4 {[%clk 0:00:16.1]} 16... dxe4
{[%clk 0:01:49.2]} 17. Rxd8 {[%clk 0:00:17]} 17... Bxb3 {[%clk 0:01:49.3]} 18.
Rxa8 {[%clk 0:00:17.3]} 18... Rxa8 {[%clk 0:01:47]} 19. Bxe7 {[%clk 0:00:15.7]}
19... Bd5 {[%clk 0:01:46.1]} 20. Rd1 {[%clk 0:00:10.1]} 20... Re8 {[%clk
0:01:39.7]} 21. Rxd5 {[%clk 0:00:08.5]} 21... Rxe7 {[%clk 0:01:39.6]} 22. Kf1
{[%clk 0:00:08.5]} 22... e3 {[%clk 0:01:38.6]} 23. fxe3 {[%clk 0:00:08.2]} 23...
Bxe3 {[%clk 0:01:35.1]} 24. Rd8+ {[%clk 0:00:08.5]} 24... Kg7 {[%clk 0:01:35.2]}
25. Rb8 {[%clk 0:00:09.2]} 25... b6 {[%clk 0:01:34.3]} 26. Rb7 {[%clk
0:00:09.1]} 26... Rxb7 {[%clk 0:01:30]} 27. Bxb7 {[%clk 0:00:10]} 27... Bd4
{[%clk 0:01:30.4]} 28. b3 {[%clk 0:00:09.8]} 28... Kf6 {[%clk 0:01:31]} 29. Kg2
{[%clk 0:00:08.8]} 29... Ke5 {[%clk 0:01:29.6]} 30. Ba6 {[%clk 0:00:08.6]} 30...
Bc5 {[%clk 0:01:27.8]} 31. Bc4 {[%clk 0:00:08.9]} 31... f5 {[%clk 0:01:25.2]}
32. Kf3 {[%clk 0:00:08.4]} 32... Be7 {[%clk 0:01:17.4]} 33. h3 {[%clk
0:00:08.2]} 33... h6 {[%clk 0:01:16.9]} 34. g4 {[%clk 0:00:06.9]} 34... fxg4+
{[%clk 0:01:17.2]} 35. hxg4 {[%clk 0:00:07.2]} 35... Bg5 {[%clk 0:01:17.3]} 36.
Bf7 {[%clk 0:00:06.6]} 36... Kf6 {[%clk 0:01:17.1]} 37. Bc4 {[%clk 0:00:07.1]}
37... h5 {[%clk 0:01:15.7]} 38. gxh5 {[%clk 0:00:06.8]} 38... gxh5 {[%clk
0:01:16.6]} 39. Kg2 {[%clk 0:00:07.7]} 39... Ke5 {[%clk 0:01:16]} 40. Kh3 {[%clk
0:00:07.9]} 40... Kd4 {[%clk 0:01:14.8]} 41. Bf7 {[%clk 0:00:08.5]} 41... h4
{[%clk 0:01:14.4]} 42. a4 {[%clk 0:00:08.1]} 42... Be7 {[%clk 0:01:12.8]} 43.
Bg8 {[%clk 0:00:08.5]} 43... Kc3 {[%clk 0:01:12.6]} 44. Bf7 {[%clk 0:00:09]}
44... Kb4 {[%clk 0:01:13.2]} 45. Bg8 {[%clk 0:00:09.4]} 45... Ka3 {[%clk
0:01:07.9]} 46. Bf7 {[%clk 0:00:09.7]} 46... Kb2 {[%clk 0:01:08.1]} 47. Bg8
{[%clk 0:00:10.3]} 47... Bd8 {[%clk 0:01:08.4]} 48. Bf7 {[%clk 0:00:10.9]} 48...
Kc3 {[%clk 0:01:08.7]} 49. Bg8 {[%clk 0:00:11.5]} 49... Kd4 {[%clk 0:01:09]} 50.
Bf7 {[%clk 0:00:12.2]} 50... Kc5 {[%clk 0:01:09.4]} 51. Bg8 {[%clk 0:00:12.9]}
51... Kd6 {[%clk 0:01:09.8]} 52. Bf7 {[%clk 0:00:13.4]} 52... Ke7 {[%clk
0:01:10.2]} 53. Bc4 {[%clk 0:00:14.1]} 53... Kd6 {[%clk 0:01:09]} 54. Bd3 {[%clk
0:00:14.7]} 54... Kd5 {[%clk 0:01:08.9]} 55. Bc4+ {[%clk 0:00:15.1]} 55... Kc5
{[%clk 0:01:09.4]} 56. Bg8 {[%clk 0:00:16]} 56... Kd6 {[%clk 0:01:09.5]} 57. Bf7
{[%clk 0:00:16.3]} 57... Ke7 {[%clk 0:01:09.6]} 58. Bg8 {[%clk 0:00:17]} 58...
Kf8 {[%clk 0:01:09.7]} 59. Bc4 {[%clk 0:00:17.7]} 59... Kg7 {[%clk 0:01:10.1]}
60. Bd3 {[%clk 0:00:18]} 60... Kh6 {[%clk 0:01:09.8]} 61. Bc4 {[%clk 0:00:18.7]}
61... Kg5 {[%clk 0:01:10.3]} 62. Bd3 {[%clk 0:00:19.4]} 62... Kf4 {[%clk
0:01:10]} 63. Bc4 {[%clk 0:00:20.1]} 63... Ke3 {[%clk 0:01:09]} 64. Bg8 {[%clk
0:00:20.5]} 64... Kd2 {[%clk 0:01:09.2]} 65. Bf7 {[%clk 0:00:21.2]} 65... Kc3
{[%clk 0:01:09.5]} 66. Bg8 {[%clk 0:00:21.9]} 66... Kb2 {[%clk 0:01:09.8]} 67.
Bf7 {[%clk 0:00:22.4]} 67... Ka3 {[%clk 0:01:10.3]} 68. Bg8 {[%clk 0:00:22.8]}
68... Kb4 {[%clk 0:01:10.9]} 69. Bf7 {[%clk 0:00:23.4]} 69... Kc3 {[%clk
0:01:11.4]} 1/2-1/2

[Event "Early-Titled-Tuesday-Blitz-May-07-2024"]
[Site "Chess.com"]
[Date "2024.05.07"]
[Round "2"]
[White "N18player"]
[Black "SchmakAttack"]
[Result "0-1"]
[WhiteElo "2546"]
[BlackElo "2776"]
[TimeControl "180+1"]
[EndTime "8:20:13 PDT"]
[Termination "SchmakAttack won by resignation"]

1. Nf3 {[%clk 0:03:00.9]} 1... d5 {[%clk 0:02:58.5]} 2. c4 {[%clk 0:03:01.1]}
2... d4 {[%clk 0:02:58.6]} 3. e3 {[%clk 0:03:01.6]} 3... c5 {[%clk 0:02:57.2]}
4. b4 {[%clk 0:03:02.2]} 4... Nf6 {[%clk 0:02:57]} 5. bxc5 {[%clk 0:03:01.4]}
5... Nc6 {[%clk 0:02:56]} 6. exd4 {[%clk 0:03:00.3]} 6... Nxd4 {[%clk
0:02:56.9]} 7. Nc3 {[%clk 0:02:58.1]} 7... e5 {[%clk 0:02:43.5]} 8. Be2 {[%clk
0:02:54.1]} 8... Bxc5 {[%clk 0:02:28.2]} 9. O-O {[%clk 0:02:53.2]} 9... O-O
{[%clk 0:02:27.3]} 10. Nxe5 {[%clk 0:02:41.9]} 10... Re8 {[%clk 0:02:27]} 11.
Nf3 {[%clk 0:02:36.3]} 11... Nxe2+ {[%clk 0:01:54.1]} 12. Nxe2 {[%clk 0:02:36]}
12... Qd3 {[%clk 0:01:54.4]} 13. Nf4 {[%clk 0:02:14.4]} 13... Qxc4 {[%clk
0:01:54.1]} 14. d4 {[%clk 0:02:14.5]} 14... Bd6 {[%clk 0:01:54.8]} 15. Ne5
{[%clk 0:02:09.6]} 15... Bxe5 {[%clk 0:01:47.4]} 16. dxe5 {[%clk 0:02:10.5]}
16... Rxe5 {[%clk 0:01:47.8]} 17. Rb1 {[%clk 0:01:18]} 17... b6 {[%clk
0:01:20.9]} 18. Bb2 {[%clk 0:00:15.9]} 18... Qxf4 {[%clk 0:01:09.7]} 19. Bxe5
{[%clk 0:00:15.8]} 19... Qxe5 {[%clk 0:01:10.6]} 20. Re1 {[%clk 0:00:16.2]}
20... Qc7 {[%clk 0:01:11.2]} 21. Rc1 {[%clk 0:00:16.7]} 21... Qd7 {[%clk
0:01:11.8]} 22. Qf3 {[%clk 0:00:16.2]} 22... Bb7 {[%clk 0:01:10.1]} 23. Qg3
{[%clk 0:00:17.1]} 23... Nd5 {[%clk 0:01:05.7]} 24. h4 {[%clk 0:00:16.3]} 24...
h6 {[%clk 0:01:03.4]} 25. Re5 {[%clk 0:00:13.1]} 25... Re8 {[%clk 0:00:48.2]}
26. h5 {[%clk 0:00:13]} 26... f6 {[%clk 0:00:37.9]} 27. Rxe8+ {[%clk 0:00:08.2]}
27... Qxe8 {[%clk 0:00:38.8]} 28. Qg4 {[%clk 0:00:06.9]} 28... Qe7 {[%clk
0:00:28.9]} 29. Rd1 {[%clk 0:00:06.5]} 29... Qf7 {[%clk 0:00:22.8]} 30. Re1
{[%clk 0:00:05.4]} 30... f5 {[%clk 0:00:21.2]} 31. Qf3 {[%clk 0:00:04.7]} 31...
Bc8 {[%clk 0:00:10.7]} 32. Re5 {[%clk 0:00:04.5]} 32... Be6 {[%clk 0:00:11.5]}
33. Qe2 {[%clk 0:00:03.5]} 33... Nc7 {[%clk 0:00:09.5]} 34. a3 {[%clk
0:00:02.6]} 34... Qe7 {[%clk 0:00:07.3]} 35. Qe3 {[%clk 0:00:01.5]} 35... Qd6
{[%clk 0:00:06.9]} 36. Qf4 {[%clk 0:00:02.2]} 36... Nd5 {[%clk 0:00:03.7]} 37.
Qe3 {[%clk 0:00:02.1]} 37... Nxe3 {[%clk 0:00:03.6]} 38. Rxe3 {[%clk 0:00:03]}
38... Qd1+ {[%clk 0:00:03.4]} 39. Kh2 {[%clk 0:00:03.9]} 39... Qxh5+ {[%clk
0:00:04.2]} 40. Kg1 {[%clk 0:00:04.6]} 40... Qf7 {[%clk 0:00:04.5]} 41. Kh2
{[%clk 0:00:05.5]} 41... f4 {[%clk 0:00:05.1]} 42. Rg3 {[%clk 0:00:06.1]} 42...
fxg3+ {[%clk 0:00:05.3]} 0-1